fUSD/lending_fUSD_20250219
["ID","MTS","AMOUNT","RATE_DAILY","PERIOD"]
[353691339,1739991082092,-726.31,0.00011613,2]
[353691340,1739991082102,-527.6,0.00011613,2]
[353691341,1739991082111,-226.77520404,0.00011613,2]
[353691342,1739991082121,-637.14,0.00011613,2]
[353691343,1739991082130,-335.282174,0.00011613,2]
[353691344,1739991082140,-550.13,0.00011613,2]
[353691345,1739991082150,-501.4,0.00011613,2]
[353691346,1739991082162,-445.363227,0.00011613,2]
[353691347,1739991082173,-500.0,0.00011613,2]
[353691348,1739991082183,-500.0,0.00011613,2]
[353691349,1739991082192,-566.24,0.00011613,2]
[353691350,1739991082202,-605.64,0.00011613,2]
[353691351,1739991082212,-250.8152368,0.00011613,2]
[353691352,1739991082222,-500.0,0.00011613,2]
[353691353,1739991082231,-500.0,0.00011613,2]
[353691354,1739991082241,-705.7,0.00011613,2]
[353691355,1739991082250,-670.06,0.00011613,2]
[353691356,1739991082259,-1007.94,0.00011613,2]
[353691357,1739991082269,-500.0,0.00011613,2]
[353691358,1739991082279,-500.0,0.00011613,2]
[353691359,1739991082288,-500.0,0.00011613,2]
[353691360,1739991082298,-741.15,0.00011613,2]
[353691361,1739991082307,-500.0,0.00011613,2]
[353691362,1739991082316,-917.52,0.00011613,2]
[353691363,1739991082325,-653.65,0.00011613,2]
[353691364,1739991082335,-500.0,0.00011613,2]
[353691365,1739991082344,-1164.92,0.00011613,2]
[353691366,1739991082354,-500.0,0.00011613,2]
[353691367,1739991082363,-500.0,0.00011613,2]
[353691368,1739991082373,-1009.77,0.00011613,2]
[353691369,1739991082383,-505.68013476,0.00011613,2]
[353691370,1739991082392,-1086.24,0.00011613,2]
[353691371,1739991082402,-575.12,0.00011613,2]
[353691372,1739991082412,-1103.11,0.00011613,2]
[353691373,1739991082422,-500.0,0.00011613,2]
[353691374,1739991082431,-1008.4,0.00011613,2]
[353691375,1739991082443,-500.0,0.00011613,2]
[353691376,1739991082452,-500.0,0.00011613,2]
[353691377,1739991082461,-648.67,0.00011613,2]
[353691378,1739991082470,-689.09,0.00011613,2]
[353691379,1739991082479,-500.0,0.00011613,2]
[353691380,1739991082490,-1109.15,0.00011613,2]
[353691381,1739991082499,-500.0,0.00011613,2]
[353691382,1739991082509,-709.82,0.00011613,2]
[353691383,1739991082520,-752.25,0.00011613,2]
[353691384,1739991082530,-712.53,0.00011613,2]
[353691385,1739991082540,-500.0,0.00011613,2]
[353691386,1739991082549,-526.69568575,0.00011613,2]
[353691387,1739991082559,-500.0,0.00011613,2]
[353691388,1739991082569,-500.0,0.00011613,2]
[353691389,1739991082578,-759.69,0.00011613,2]
[353691390,1739991082588,-844.15,0.00011613,2]
[353691391,1739991082598,-1035.94,0.00011613,2]
[353691392,1739991082607,-1177.99,0.00011613,2]
[353691393,1739991082617,-939.45,0.00011613,2]
[353691394,1739991082627,-934.24,0.00011613,2]
[353691395,1739991082637,-970.06,0.00011613,2]
[353691396,1739991082646,-1565.74,0.00011613,2]
[353691397,1739991082657,-842.16,0.00011613,2]
[353691398,1739991082667,-500.0,0.00011613,2]
[353691399,1739991082677,-1231.95,0.00011613,2]
[353691400,1739991082686,-779.39,0.00011613,2]
[353691401,1739991082696,-833.68,0.00011613,2]
[353691402,1739991082706,-1114.74,0.00011613,2]
[353691403,1739991082715,-500.0,0.00011613,2]
[353691404,1739991082725,-1384.51,0.00011613,2]
[353691405,1739991082735,-992.43,0.00011613,2]
[353691406,1739991082744,-700.4,0.00011613,2]
[353691407,1739991082754,-896.41,0.00011613,2]
[353691408,1739991082763,-500.0,0.00011613,2]
[353691409,1739991082773,-500.0,0.00011613,2]
[353691410,1739991082784,-380.52585897,0.00011613,2]
[353691411,1739991082793,-835.28,0.00011613,2]
[353691412,1739991082803,-500.0,0.00011613,2]
[353691413,1739991082813,-730.1,0.00011613,2]
[353691414,1739991082823,-638.47,0.00011613,2]
[353691415,1739991082832,-722.91,0.00011613,2]
[353691416,1739991082842,-700.98,0.00011613,2]
[353691417,1739991082851,-1307.87,0.00011613,2]
[353691418,1739991082861,-500.0,0.00011613,2]
[353691419,1739991082870,-500.0,0.00011613,2]
[353691420,1739991082880,-887.61,0.00011613,2]
[353691421,1739991082891,-1299.23,0.00011613,2]
[353691422,1739991082900,-537.11,0.00011613,2]
[353691423,1739991082913,-1563.31,0.00011613,2]
[353691424,1739991082922,-500.0,0.00011613,2]
[353691425,1739991082932,-1023.26,0.00011613,2]
[353691426,1739991082942,-500.0,0.00011613,2]
[353691427,1739991082952,-626.84,0.00011613,2]
[353691428,1739991082962,-500.0,0.00011613,2]
[353691429,1739991082973,-1193.06,0.00011613,2]
[353691430,1739991082983,-500.0,0.00011613,2]
[353691431,1739991082994,-809.28,0.00011613,2]
[353691432,1739991083004,-569.98,0.00011613,2]
[353691433,1739991083015,-947.29,0.00011613,2]
[353691434,1739991083024,-500.0,0.00011613,2]
[353691435,1739991083033,-1098.62,0.00011613,2]
[353691436,1739991083042,-738.85,0.00011613,2]
[353691437,1739991083052,-602.42,0.00011613,2]
[353691438,1739991083063,-1563.53,0.00011613,2]
[353691439,1739991083074,-500.0,0.00011613,2]
[353691440,1739991083084,-819.36,0.00011613,2]
[353691441,1739991083094,-504.01,0.00011613,2]
[353691442,1739991083103,-500.0,0.00011613,2]
[353691443,1739991083112,-1617.89,0.00011613,2]
[353691444,1739991083122,-841.31,0.00011613,2]
[353691445,1739991083133,-716.57,0.00011613,2]
[353691446,1739991083142,-568.32,0.00011613,2]
[353691447,1739991083152,-1059.78,0.00011613,2]
[353691448,1739991083163,-522.15945888,0.00011613,2]
[353691449,1739991083172,-500.0,0.00011613,2]
[353691450,1739991083182,-1902.45,0.00011613,2]
[353691451,1739991083191,-685.17,0.00011613,2]
[353691452,1739991083201,-948.49,0.00011613,2]
[353691453,1739991083211,-1210.93,0.00011613,2]
[353691454,1739991083221,-500.0,0.00011613,2]
[353691455,1739991083229,-997.72,0.00011613,2]
[353691456,1739991083239,-1232.61,0.00011613,2]
[353691457,1739991083249,-1224.85,0.00011613,2]
[353691458,1739991083259,-660.75,0.00011613,2]
[353691459,1739991083269,-722.62,0.00011613,2]
[353691460,1739991083278,-856.89,0.00011613,2]
[353691461,1739991083288,-500.0,0.00011613,2]
[353691462,1739991083297,-1076.75,0.00011613,2]
[353691463,1739991083307,-529.4,0.00011613,2]
[353691464,1739991083316,-500.0,0.00011613,2]
[353691465,1739991083325,-1287.1,0.00011613,2]
[353691466,1739991083335,-500.0,0.00011613,2]
[353691467,1739991083345,-500.0,0.00011613,2]
[353691468,1739991083355,-1123.65,0.00011613,2]
[353691469,1739991083365,-500.0,0.00011613,2]
[353691470,1739991083375,-507.43,0.00011613,2]
[353691471,1739991083384,-767.14,0.00011613,2]
[353691472,1739991083394,-500.0,0.00011613,2]
[353691473,1739991083403,-838.25,0.00011613,2]
[353691474,1739991083414,-1834.21,0.00011613,2]
[353691475,1739991083423,-500.0,0.00011613,2]
[353691476,1739991083433,-857.74,0.00011613,2]
[353691477,1739991083445,-1131.11,0.00011613,2]
[353691478,1739991083454,-702.31,0.00011613,2]
[353691479,1739991083463,-500.0,0.00011613,2]
[353691480,1739991083473,-500.0,0.00011613,2]
[353691481,1739991083483,-1818.6,0.00011613,2]
[353691482,1739991083494,-967.39,0.00011613,2]
[353691483,1739991083504,-1022.47,0.00011613,2]
[353691484,1739991083514,-766.99,0.00011613,2]
[353691485,1739991083525,-1271.18,0.00011613,2]
[353691486,1739991083535,-562.14,0.00011613,2]
[353691487,1739991083545,-613.64,0.00011613,2]
[353691488,1739991083555,-1255.93,0.00011613,2]
[353691489,1739991083564,-500.0,0.00011613,2]
[353691490,1739991083574,-735.72,0.00011613,2]
[353691491,1739991083583,-1023.77,0.00011613,2]
[353691492,1739991083593,-500.0,0.00011613,2]
[353691493,1739991083602,-1954.75,0.00011613,2]
[353691494,1739991083612,-741.16,0.00011613,2]
[353691495,1739991083622,-500.0,0.00011613,2]
[353691496,1739991083632,-500.0,0.00011613,2]
[353691497,1739991083642,-500.0,0.00011613,2]
[353691498,1739991083651,-500.0,0.00011613,2]
[353691499,1739991083662,-1492.46,0.00011613,2]
[353691500,1739991083674,-1010.26,0.00011613,2]
[353691501,1739991083684,-1211.99,0.00011613,2]
[353691502,1739991083694,-500.0,0.00011613,2]
[353691503,1739991083704,-908.55,0.00011613,2]
[353691504,1739991083714,-651.03,0.00011613,2]
[353691505,1739991083724,-1115.3,0.00011613,2]
[353691506,1739991083734,-622.28,0.00011613,2]
[353691507,1739991083744,-825.62,0.00011613,2]
[353691508,1739991083754,-725.41,0.00011613,2]
[353691509,1739991083764,-1312.13,0.00011613,2]
[353691510,1739991083774,-500.0,0.00011613,2]
[353691511,1739991083783,-500.0,0.00011613,2]
[353691512,1739991083794,-1135.89,0.00011613,2]
[353691513,1739991083803,-500.0,0.00011613,2]
[353691514,1739991083813,-500.0,0.00011613,2]
[353691515,1739991083823,-626.24,0.00011613,2]
[353691516,1739991083833,-873.22,0.00011613,2]
[353691517,1739991083842,-500.0,0.00011613,2]
[353691518,1739991083852,-828.64,0.00011613,2]
[353691519,1739991083863,-1067.13,0.00011613,2]
[353691520,1739991083872,-760.82,0.00011613,2]
[353691521,1739991083882,-959.81,0.00011613,2]
[353691522,1739991083892,-1130.2,0.00011613,2]
[353691523,1739991083902,-500.0,0.00011613,2]
[353691524,1739991083912,-621.03,0.00011613,2]
[353691525,1739991083923,-500.0,0.00011613,2]
[353691526,1739991083933,-837.8,0.00011613,2]
[353691527,1739991083943,-500.0,0.00011613,2]
[353691528,1739991083954,-500.0,0.00011613,2]
[353691529,1739991083964,-500.0,0.00011613,2]
[353691530,1739991083975,-687.97,0.00011613,2]
[353691531,1739991083985,-524.85,0.00011613,2]
[353691532,1739991083995,-763.25,0.00011613,2]
[353691533,1739991084005,-500.0,0.00011613,2]
[353691534,1739991084015,-1453.26,0.00011613,2]
[353691535,1739991084025,-2178.41,0.00011613,2]
[353691536,1739991084034,-1110.11,0.00011613,2]
[353691537,1739991084043,-500.0,0.00011613,2]
[353691538,1739991084052,-2978.68,0.00011613,2]
[353691539,1739991084063,-867.64,0.00011613,2]
[353691540,1739991084074,-500.0,0.00011613,2]
[353691541,1739991084084,-774.36,0.00011613,2]
[353691542,1739991084093,-811.92,0.00011613,2]
[353691543,1739991084103,-500.0,0.00011613,2]
[353691544,1739991084113,-909.17,0.00011613,2]
[353691545,1739991084123,-500.0,0.00011613,2]
[353691546,1739991084134,-500.0,0.00011613,2]
[353691547,1739991084144,-944.41,0.00011613,2]
[353691548,1739991084155,-1667.3,0.00011613,2]
[353691549,1739991084164,-1335.65,0.00011613,2]
[353691550,1739991084175,-1536.77,0.00011613,2]
[353691551,1739991084185,-1151.56,0.00011613,2]
[353691552,1739991084195,-500.0,0.00011613,2]
[353691553,1739991084206,-2300.26,0.00011613,2]
[353691554,1739991084216,-1054.96,0.00011613,2]
[353691555,1739991084227,-3967.01,0.00011613,2]
[353691556,1739991084238,-2151.49,0.00011613,2]
[353691557,1739991084248,-500.0,0.00011613,2]
[353691558,1739991084257,-500.0,0.00011613,2]
[353691559,1739991084268,-500.0,0.00011613,2]
[353691560,1739991084277,-1026.98,0.00011613,2]
[353691561,1739991084287,-1717.95,0.00011613,2]
[353691562,1739991084297,-723.0,0.00011613,2]
[353691563,1739991084307,-858.82,0.00011613,2]
[353691564,1739991084318,-736.71,0.00011613,2]
[353691565,1739991084328,-500.0,0.00011613,2]
[353691566,1739991084337,-731.07,0.00011613,2]
[353691567,1739991084347,-808.06,0.00011613,2]
[353691568,1739991084358,-1042.18,0.00011613,2]
[353691569,1739991084369,-500.0,0.00011613,2]
[353691570,1739991084379,-500.0,0.00011613,2]
[353691571,1739991084389,-1003.52,0.00011613,2]
[353691572,1739991084399,-500.0,0.00011613,2]
[353691573,1739991084411,-1216.45,0.00011613,2]
[353691574,1739991084422,-500.0,0.00011613,2]
[353691575,1739991084432,-897.65,0.00011613,2]
[353691576,1739991084445,-534.83,0.00011613,2]
[353691577,1739991084456,-969.77,0.00011613,2]
[353691578,1739991084465,-1228.25,0.00011613,2]
[353691579,1739991084475,-2264.91,0.00011613,2]
[353691580,1739991084487,-597.7,0.00011613,2]
[353691581,1739991084496,-500.0,0.00011613,2]
[353691582,1739991084505,-1031.26,0.00011613,2]
[353691583,1739991084516,-361.20281301,0.00011613,2]
[353691584,1739991084529,-813.49,0.00011613,2]
[353691585,1739991084539,-500.0,0.00011613,2]
[353691586,1739991084549,-943.59,0.00011613,2]
[353691587,1739991084559,-807.9,0.00011613,2]
[353691588,1739991084570,-952.43,0.00011613,2]
[353691589,1739991084580,-1249.19,0.00011613,2]
[353691590,1739991084590,-1931.39,0.00011613,2]
[353691591,1739991084600,-699.69,0.00011613,2]
[353691592,1739991084612,-500.0,0.00011613,2]
[353691593,1739991084623,-736.37,0.00011613,2]
[353691594,1739991084635,-500.0,0.00011613,2]
[353691595,1739991084648,-1349.59,0.00011613,2]
[353691596,1739991084659,-2136.43,0.00011613,2]
[353691597,1739991084669,-619.91,0.00011613,2]
[353691598,1739991084679,-500.0,0.00011613,2]
[353691599,1739991084690,-1308.13,0.00011613,2]
[353691600,1739991084700,-763.21,0.00011613,2]
[353691601,1739991084711,-500.0,0.00011613,2]
[353691602,1739991084721,-676.6,0.00011613,2]
[353691603,1739991084732,-1669.19,0.00011613,2]
[353691604,1739991084742,-2496.14,0.00011613,2]
[353691605,1739991084754,-838.79,0.00011613,2]
[353691606,1739991084765,-533.51,0.00011613,2]
[353691607,1739991084775,-500.0,0.00011613,2]
[353691608,1739991084785,-844.7,0.00011613,2]
[353691609,1739991084795,-500.0,0.00011613,2]
[353691610,1739991084805,-1038.95,0.00011613,2]
[353691611,1739991084815,-643.34,0.00011613,2]
[353691612,1739991084825,-862.23,0.00011613,2]
[353691613,1739991084835,-1682.85,0.00011613,2]
[353691614,1739991084844,-972.98,0.00011613,2]
[353691615,1739991084854,-1170.77,0.00011613,2]
[353691616,1739991084864,-1036.38,0.00011613,2]
[353691617,1739991084874,-500.0,0.00011613,2]
[353691618,1739991084884,-665.65,0.00011613,2]
[353691619,1739991084895,-500.0,0.00011613,2]
[353691620,1739991084905,-816.32,0.00011613,2]
[353691621,1739991084915,-500.0,0.00011613,2]
[353691622,1739991084925,-1472.21,0.00011613,2]
[353691623,1739991084935,-1143.91,0.00011613,2]
[353691624,1739991084945,-581.26,0.00011613,2]
[353691625,1739991084955,-7684.69,0.00011613,2]
[353691626,1739991084966,-500.0,0.00011613,2]
[353691627,1739991084975,-500.0,0.00011613,2]
[353691628,1739991084986,-1239.55,0.00011613,2]
[353691629,1739991084996,-1609.82,0.00011613,2]
[353691630,1739991085006,-694.56,0.00011613,2]
[353691631,1739991085017,-1000.0,0.00011613,2]
[353691632,1739991085027,-677.2,0.00011613,2]
[353691633,1739991085038,-500.0,0.00011613,2]
[353691634,1739991085049,-500.0,0.00011613,2]
[353691635,1739991085059,-1545.54,0.00011613,2]
[353691636,1739991085069,-1288.85,0.00011613,2]
[353691637,1739991085080,-1349.76,0.00011613,2]
[353691638,1739991085090,-591.57,0.00011613,2]
[353691639,1739991085100,-500.0,0.00011613,2]
[353691640,1739991085109,-500.0,0.00011613,2]
[353691641,1739991085120,-1045.64,0.00011613,2]
[353691642,1739991085131,-500.0,0.00011613,2]
[353691643,1739991085140,-544.71,0.00011613,2]
[353691644,1739991085151,-515.07,0.00011613,2]
[353691645,1739991085162,-500.0,0.00011613,2]
[353691646,1739991085173,-500.0,0.00011613,2]
[353691647,1739991085184,-864.21,0.00011613,2]
[353691648,1739991085195,-1217.73,0.00011613,2]
[353691649,1739991085206,-500.0,0.00011613,2]
[353691650,1739991085216,-1242.44,0.00011613,2]
[353691651,1739991085227,-500.0,0.00011613,2]
[353691652,1739991085238,-608.9,0.00011613,2]
[353691653,1739991085247,-500.0,0.00011613,2]
[353691654,1739991085258,-500.0,0.00011613,2]
[353691655,1739991085268,-1333.33,0.00011613,2]
[353691656,1739991085279,-2099.28,0.00011613,2]
[353691657,1739991085288,-646.88,0.00011613,2]
[353691658,1739991085298,-1098.74,0.00011613,2]
[353691659,1739991085309,-500.0,0.00011613,2]
[353691660,1739991085319,-500.0,0.00011613,2]
[353691661,1739991085330,-631.78,0.00011613,2]
[353691662,1739991085340,-1305.78,0.00011613,2]
[353691663,1739991085350,-814.94,0.00011613,2]
[353691664,1739991085359,-591.42,0.00011613,2]
[353691665,1739991085369,-500.0,0.00011613,2]
[353691666,1739991085380,-500.0,0.00011613,2]
[353691667,1739991085390,-1656.29,0.00011613,2]
[353691668,1739991085400,-1698.82,0.00011613,2]
[353691669,1739991085411,-500.0,0.00011613,2]
[353691670,1739991085420,-958.07,0.00011613,2]
[353691671,1739991085430,-1140.78,0.00011613,2]
[353691672,1739991085443,-1343.79,0.00011613,2]
[353691673,1739991085453,-500.0,0.00011613,2]
[353691674,1739991085463,-500.0,0.00011613,2]
[353691675,1739991085473,-571.24259119,0.00011613,2]
[353691676,1739991085485,-3616.83,0.00011613,2]
[353691677,1739991085495,-1109.34,0.00011613,2]
[353691678,1739991085505,-940.17,0.00011613,2]
[353691679,1739991085517,-500.0,0.00011613,2]
[353691680,1739991085527,-1068.94,0.00011613,2]
[353691681,1739991085537,-500.0,0.00011613,2]
[353691682,1739991085547,-500.0,0.00011613,2]
[353691683,1739991085558,-1192.02,0.00011613,2]
[353691684,1739991085568,-1134.66,0.00011613,2]
[353691685,1739991085579,-500.0,0.00011613,2]
[353691686,1739991085589,-500.0,0.00011613,2]
[353691687,1739991085599,-1387.53,0.00011613,2]
[353691688,1739991085610,-500.0,0.00011613,2]
[353691689,1739991085621,-500.0,0.00011613,2]
[353691690,1739991085631,-525.63,0.00011613,2]
[353691691,1739991085642,-500.0,0.00011613,2]
[353691692,1739991085652,-1867.51,0.00011613,2]
[353691693,1739991085664,-1262.86,0.00011613,2]
[353691694,1739991085674,-500.0,0.00011613,2]
[353691695,1739991085684,-1225.46,0.00011613,2]
[353691696,1739991085694,-500.0,0.00011613,2]
[353691697,1739991085705,-500.0,0.00011613,2]
[353691698,1739991085716,-849.02,0.00011613,2]
[353691699,1739991085727,-1283.85,0.00011613,2]
[353691700,1739991085737,-1033.15,0.00011613,2]
[353691701,1739991085747,-1890.5,0.00011613,2]
[353691702,1739991085758,-500.0,0.00011613,2]
[353691703,1739991085769,-1247.13,0.00011613,2]
[353691704,1739991085780,-563.08,0.00011613,2]
[353691705,1739991085791,-500.0,0.00011613,2]
[353691706,1739991085802,-953.52,0.00011613,2]
[353691707,1739991085812,-701.13,0.00011613,2]
[353691708,1739991085824,-606.51,0.00011613,2]
[353691709,1739991085835,-500.0,0.00011613,2]
[353691710,1739991085846,-500.0,0.00011613,2]
[353691711,1739991085856,-837.99,0.00011613,2]
[353691712,1739991085867,-758.16,0.00011613,2]
[353691713,1739991085877,-852.55,0.00011613,2]
[353691714,1739991085888,-500.0,0.00011613,2]
[353691715,1739991085899,-1040.5,0.00011613,2]
[353691716,1739991085910,-626.51,0.00011613,2]
[353691717,1739991085921,-500.0,0.00011613,2]
[353691718,1739991085931,-500.0,0.00011613,2]
[353691719,1739991085943,-500.0,0.00011613,2]
[353691720,1739991085954,-500.0,0.00011613,2]
[353691721,1739991085964,-1225.45,0.00011613,2]
[353691722,1739991085974,-842.88,0.00011614,2]
[353691723,1739991085984,-500.0,0.00011673,2]
[353691724,1739991085994,-500.08582552,0.00011673,2]
[353691725,1739991086005,-524.29206794,0.00011673,2]
[353691726,1739991086015,-500.0,0.00011673,2]
[353691727,1739991086026,-500.0,0.00011673,2]
[353691728,1739991086232,-503.28480069,0.00011673,2]
[353691729,1739991086267,-500.0,0.00011673,2]
[353691730,1739991086278,-152.18766175,0.00011673,2]
[353691731,1739991086288,-1398.28713769,0.00011678,2]
[353691732,1739991086298,-3046.97846164,0.00011678,2]
[353691733,1739991086308,-659.34,0.00011694,2]
[353691734,1739991086319,-500.0,0.00011694,2]
[353691735,1739991086328,-1285.43,0.00011694,2]
[353691736,1739991086337,-2055.78,0.00011694,2]
[353691737,1739991086347,-1176.26,0.00011694,2]
[353691738,1739991086357,-1598.02,0.00011694,2]
[353691739,1739991086367,-1177.64,0.00011694,2]
[353691740,1739991086377,-1728.13,0.00011694,2]
[353691741,1739991086388,-1464.57,0.00011694,2]
[353691742,1739991086397,-988.1,0.00011694,2]
[353691743,1739991086408,-1523.71,0.00011694,2]
[353691744,1739991086418,-1697.79,0.00011694,2]
[353691745,1739991086429,-914.84,0.00011694,2]
[353691746,1739991086441,-1345.01,0.00011694,2]
[353691747,1739991086453,-1899.5,0.00011694,2]
[353691748,1739991086464,-835.97,0.00011694,2]
[353691749,1739991086475,-1253.59,0.00011694,2]
[353691750,1739991086486,-676.35,0.00011694,2]
[353691751,1739991086495,-1199.2,0.00011694,2]
[353691752,1739991086505,-1444.06,0.00011694,2]
[353691753,1739991086515,-1165.51,0.00011694,2]
[353691754,1739991086526,-1110.09,0.00011694,2]
[353691755,1739991086535,-955.77,0.00011694,2]
[353691756,1739991086544,-1702.36,0.00011694,2]
[353691757,1739991086553,-500.0,0.00011694,2]
[353691758,1739991086563,-1068.07,0.00011694,2]
[353691759,1739991086573,-541.29,0.00011694,2]
[353691760,1739991086584,-1380.32,0.00011694,2]
[353691761,1739991086594,-500.0,0.00011695,2]
[353691762,1739991086604,-564.03,0.00011695,2]
[353691763,1739991086613,-500.0,0.00011695,2]
[353691764,1739991086623,-500.0,0.00011695,2]
[353691765,1739991086632,-958.09,0.00011695,2]
[353691766,1739991086642,-500.0,0.00011695,2]
[353691767,1739991086652,-638.44,0.00011695,2]
[353691768,1739991086669,-500.0,0.00011695,2]
[353691769,1739991086678,-1305.17,0.00011695,2]
[353691770,1739991086689,-500.0,0.00011695,2]
[353691771,1739991086700,-210.66228285,0.00011695,2]
[353691772,1739991086709,-509.85418288,0.00011695,2]
[353691773,1739991086719,-500.0,0.00011695,2]
[353691774,1739991086729,-335.282174,0.00011695,2]
[353691775,1739991086739,-1013.4,0.00011695,2]
[353691776,1739991086748,-445.363227,0.00011695,2]
[353691777,1739991086759,-800.82,0.00011695,2]
[353691778,1739991086768,-566.24,0.00011695,2]
[353691779,1739991086778,-500.0,0.00011695,2]
[353691780,1739991086788,-1291.22,0.00011695,2]
[353691781,1739991086797,-705.7,0.00011695,2]
[353691782,1739991086807,-1007.94,0.00011695,2]
[353691783,1739991086816,-500.0,0.00011695,2]
[353691784,1739991086826,-175.95626,0.00011695,2]
[353691785,1739991086836,-500.0,0.00011695,2]
[353691786,1739991086846,-500.0,0.00011695,2]
[353691787,1739991086856,-1100.17,0.00011695,2]
[353691788,1739991086865,-1164.92,0.00011695,2]
[353691789,1739991086876,-1009.77,0.00011695,2]
[353691790,1739991086886,-1086.24,0.00011695,2]
[353691791,1739991086895,-1103.11,0.00011695,2]
[353691792,1739991086907,-500.0,0.00011695,2]
[353691793,1739991086917,-500.0,0.00011695,2]
[353691794,1739991086927,-689.09,0.00011695,2]
[353691795,1739991086937,-500.0,0.00011695,2]
[353691796,1739991086948,-1109.15,0.00011695,2]
[353691797,1739991086959,-752.25,0.00011695,2]
[353691798,1739991086969,-712.53,0.00011695,2]
[353691799,1739991086979,-500.0,0.00011695,2]
[353691800,1739991086989,-844.15,0.00011695,2]
[353691801,1739991087000,-1035.94,0.00011695,2]
[353691802,1739991087011,-1177.99,0.00011695,2]
[353691803,1739991087020,-970.06,0.00011695,2]
[353691804,1739991087031,-842.16,0.00011695,2]
[353691805,1739991087041,-1231.95,0.00011695,2]
[353691806,1739991087051,-833.68,0.00011695,2]
[353691807,1739991087062,-1384.51,0.00011695,2]
[353691808,1739991087072,-992.43,0.00011695,2]
[353691809,1739991087081,-700.4,0.00011695,2]
[353691810,1739991087090,-896.41,0.00011695,2]
[353691811,1739991087100,-500.0,0.00011695,2]
[353691812,1739991087110,-835.28,0.00011695,2]
[353691813,1739991087119,-730.1,0.00011695,2]
[353691814,1739991087128,-638.47,0.00011695,2]
[353691815,1739991087138,-722.91,0.00011695,2]
[353691816,1739991087147,-700.98,0.00011695,2]
[353691817,1739991087157,-500.0,0.00011695,2]
[353691818,1739991087168,-887.61,0.00011695,2]
[353691819,1739991087177,-1299.23,0.00011695,2]
[353691820,1739991087188,-537.11,0.00011695,2]
[353691821,1739991087197,-1023.26,0.00011695,2]
[353691822,1739991087207,-500.0,0.00011695,2]
[353691823,1739991087217,-500.0,0.00011695,2]
[353691824,1739991087227,-1193.06,0.00011695,2]
[353691825,1739991087238,-809.28,0.00011695,2]
[353691826,1739991087249,-569.98,0.00011695,2]
[353691827,1739991087264,-947.29,0.00011695,2]
[353691828,1739991087274,-738.85,0.00011695,2]
[353691829,1739991087286,-500.0,0.00011695,2]
[353691830,1739991087296,-819.36,0.00011695,2]
[353691831,1739991087306,-504.01,0.00011695,2]
[353691832,1739991087316,-841.31,0.00011695,2]
[353691833,1739991087326,-716.57,0.00011695,2]
[353691834,1739991087336,-1059.78,0.00011695,2]
[353691835,1739991087346,-685.17,0.00011695,2]
[353691836,1739991087355,-948.49,0.00011695,2]
[353691837,1739991087365,-1210.93,0.00011695,2]
[353691838,1739991087375,-1232.61,0.00011695,2]